{"text_format":"2","workbook":"xlsx","n_sheets":10,"sheets":["Анкета","Информация","Сайт","Мед сопровождение","Финансирование","Да-Нет","Локальные акты","Субъекты","Раб группа","План-график"],"not_rendered":{"charts":0,"images":0,"macros":0,"external_links":0,"defined_names":0,"comments":0,"pivot_tables":0},"unopened":[],"bounds":{"document_bytes":16777216,"sheet_cells":100000,"run_cost":"one","rows_first":2000,"rows_last":500,"rows_between":2000,"halvings":0,"cell_chars":16384,"cell_head_chars":4096},"cells_cut":0,"cells_raw":0,"read":"whole","date_system":"1900"}

{"sheet":"Анкета","index":0,"n_rows":253,"n_cols":17,"rows_kept":253,"cut":false,"hidden":false,"merged":[[249,1,249,16],[241,11,241,13],[241,14,241,16],[244,1,244,16],[245,1,245,14],[245,15,245,16],[246,1,246,16],[248,1,248,16],[251,1,251,16],[237,1,237,7],[237,8,237,10],[237,11,237,13],[237,14,237,16],[242,1,242,7],[242,8,242,10],[242,11,242,13],[242,14,242,16],[238,1,241,2],[238,8,238,10],[238,11,238,13],[238,14,238,16],[239,8,239,10],[239,11,239,13],[239,14,239,16],[238,3,238,7],[239,3,239,7],[241,3,241,7],[240,3,240,7],[240,8,240,10],[240,11,240,13],[240,14,240,16],[241,8,241,10],[233,1,233,16],[236,1,236,16],[234,1,234,7],[234,8,234,10],[234,11,234,13],[234,14,234,16],[235,8,235,10],[235,11,235,13],[235,14,235,16],[235,1,235,7],[230,1,230,16],[231,8,231,16],[231,1,232,7],[232,8,232,10],[232,11,232,13],[232,14,232,16],[227,15,227,16],[228,1,228,4],[228,5,228,6],[228,7,228,8],[228,9,228,10],[228,11,228,12],[228,13,228,14],[228,15,228,16],[227,1,227,4],[227,5,227,6],[227,7,227,8],[227,9,227,10],[227,11,227,12],[227,13,227,14],[225,15,225,16],[226,1,226,4],[226,5,226,6],[226,7,226,8],[226,9,226,10],[226,11,226,12],[226,13,226,14],[226,15,226,16],[225,1,225,4],[225,5,225,6],[225,7,225,8],[225,9,225,10],[225,11,225,12],[225,13,225,14],[223,15,223,16],[224,1,224,4],[224,5,224,6],[224,7,224,8],[224,9,224,10],[224,11,224,12],[224,13,224,14],[224,15,224,16],[223,1,223,4],[223,5,223,6],[223,7,223,8],[223,9,223,10],[223,11,223,12],[223,13,223,14],[221,15,221,16],[222,1,222,4],[222,5,222,6],[222,7,222,8],[222,9,222,10],[222,11,222,12],[222,13,222,14],[222,15,222,16],[221,1,221,4],[221,5,221,6],[221,7,221,8],[221,9,221,10],[221,11,221,12],[221,13,221,14],[219,15,219,16],[217,1,217,4],[217,5,217,6],[217,7,217,8],[217,9,217,10],[217,11,217,12],[220,1,220,4],[220,5,220,6],[220,7,220,8],[220,9,220,10],[220,11,220,12],[220,13,220,14],[220,15,220,16],[219,1,219,4],[219,5,219,6],[219,7,219,8],[219,9,219,10],[219,11,219,12],[219,13,219,14],[210,13,210,14],[211,13,211,14],[217,15,217,16],[218,1,218,4],[218,5,218,6],[218,7,218,8],[218,9,218,10],[218,11,218,12],[218,13,218,14],[218,15,218,16],[202,9,205,9],[204,2,205,8],[216,7,216,8],[216,9,216,10],[216,13,216,14],[217,13,217,14],[211,9,211,10],[216,15,216,16],[216,11,216,12],[216,5,216,6],[213,1,213,16],[215,15,215,16],[215,13,215,14],[215,11,215,12],[214,11,214,16],[214,5,214,10],[215,5,215,6],[215,7,215,8],[215,9,215,10],[214,1,215,4],[216,1,216,4],[210,1,211,6],[210,11,210,12],[211,11,211,12],[187,1,187,16],[210,15,210,16],[211,15,211,16],[208,9,209,10],[210,7,210,8],[211,7,211,8],[210,9,210,10],[190,1,193,1],[190,9,193,9],[193,10,193,16],[194,1,197,1],[194,9,197,9],[197,10,197,16],[207,1,207,16],[208,11,208,16],[209,15,209,16],[209,13,209,14],[209,11,209,12],[208,1,209,6],[208,7,209,8],[198,1,201,1],[198,9,201,9],[200,2,201,8],[202,1,205,1],[168,13,168,14],[169,13,169,14],[170,13,170,14],[166,11,166,12],[167,11,167,12],[168,11,168,12],[169,11,169,12],[170,11,170,12],[160,11,160,12],[161,11,161,12],[168,15,168,16],[169,15,169,16],[170,15,170,16],[160,15,160,16],[161,15,161,16],[162,15,162,16],[163,15,163,16],[164,15,164,16],[165,15,165,16],[156,15,156,16],[157,15,157,16],[158,15,158,16],[159,15,159,16],[165,13,165,14],[166,13,166,14],[167,13,167,14],[159,13,159,14],[160,13,160,14],[161,13,161,14],[162,13,162,14],[163,13,163,14],[164,13,164,14],[156,13,156,14],[157,13,157,14],[158,13,158,14],[166,15,166,16],[167,15,167,16],[168,9,168,10],[169,9,169,10],[170,9,170,10],[154,11,154,12],[155,11,155,12],[156,11,156,12],[157,11,157,12],[158,11,158,12],[159,11,159,12],[161,9,161,10],[162,9,162,10],[163,9,163,10],[164,9,164,10],[165,9,165,10],[166,9,166,10],[162,11,162,12],[163,11,163,12],[164,11,164,12],[165,11,165,12],[164,5,164,6],[168,7,168,8],[169,7,169,8],[170,7,170,8],[154,9,154,10],[155,9,155,10],[156,9,156,10],[157,9,157,10],[158,9,158,10],[159,9,159,10],[160,9,160,10],[162,7,162,8],[163,7,163,8],[164,7,164,8],[165,7,165,8],[166,7,166,8],[167,7,167,8],[156,7,156,8],[157,7,157,8],[158,7,158,8],[159,7,159,8],[160,7,160,8],[161,7,161,8],[167,9,167,10],[169,3,169,4],[170,3,170,4],[154,5,154,6],[155,5,155,6],[156,5,156,6],[157,5,157,6],[158,5,158,6],[160,3,160,4],[161,3,161,4],[162,3,162,4],[163,3,163,4],[164,3,164,4],[165,3,165,4],[165,5,165,6],[166,5,166,6],[167,5,167,6],[168,5,168,6],[169,5,169,6],[170,5,170,6],[159,5,159,6],[160,5,160,6],[161,5,161,6],[162,5,162,6],[163,5,163,6],[168,1,168,2],[169,1,169,2],[170,1,170,2],[154,3,154,4],[155,3,155,4],[156,3,156,4],[157,3,157,4],[158,3,158,4],[159,3,159,4],[162,1,162,2],[163,1,163,2],[164,1,164,2],[165,1,165,2],[166,1,166,2],[167,1,167,2],[156,1,156,2],[157,1,157,2],[158,1,158,2],[159,1,159,2],[160,1,160,2],[161,1,161,2],[166,3,166,4],[167,3,167,4],[168,3,168,4],[154,1,154,2],[155,1,155,2],[154,7,154,8],[155,7,155,8],[150,11,150,16],[152,9,152,10],[152,7,152,8],[151,5,152,6],[153,11,153,12],[153,13,153,14],[153,15,153,16],[151,15,152,16],[151,13,152,14],[151,11,152,12],[154,15,154,16],[155,15,155,16],[154,13,154,14],[155,13,155,14],[149,1,149,16],[153,1,153,2],[153,3,153,4],[153,5,153,6],[153,7,153,8],[153,9,153,10],[151,3,152,4],[150,1,152,2],[150,3,150,10],[151,7,151,10],[148,1,148,16],[142,15,142,16],[143,15,143,16],[144,15,144,16],[145,15,145,16],[146,15,146,16],[142,13,142,14],[143,13,143,14],[144,13,144,14],[145,13,145,14],[146,13,146,14],[146,11,146,12],[142,9,142,10],[143,9,143,10],[144,9,144,10],[145,9,145,10],[146,9,146,10],[144,1,144,8],[145,1,145,8],[146,1,146,8],[142,1,142,8],[143,1,143,8],[137,15,137,16],[138,15,138,16],[139,15,139,16],[140,15,140,16],[141,15,141,16],[142,11,142,12],[143,11,143,12],[144,11,144,12],[145,11,145,12],[137,13,137,14],[138,13,138,14],[139,13,139,14],[140,13,140,14],[141,13,141,14],[137,11,137,12],[138,11,138,12],[139,11,139,12],[140,11,140,12],[141,11,141,12],[137,1,137,8],[138,1,138,8],[137,9,137,10],[138,9,138,10],[139,9,139,10],[140,9,140,10],[141,9,141,10],[139,1,141,4],[139,5,139,8],[140,5,140,8],[141,5,141,8],[136,9,136,10],[136,11,136,12],[136,13,136,14],[136,15,136,16],[135,1,136,8],[134,1,134,16],[135,13,135,16],[135,9,135,12],[128,1,128,8],[129,1,129,8],[130,1,130,8],[131,1,131,8],[132,1,132,8],[132,13,132,16],[125,1,125,16],[127,13,127,16],[128,13,128,16],[129,13,129,16],[130,13,130,16],[131,13,131,16],[126,13,126,16],[126,9,126,12],[126,1,126,8],[127,1,127,8],[122,1,122,16],[123,1,123,16],[172,1,172,16],[173,1,174,8],[174,9,174,12],[174,13,174,16],[173,9,173,16],[110,1,110,16],[111,1,111,16],[113,9,113,16],[113,1,113,8],[112,1,112,8],[112,9,112,16],[115,1,115,16],[117,1,117,8],[117,9,117,16],[116,1,116,8],[116,9,116,16],[127,9,127,12],[128,9,128,12],[129,9,129,12],[130,9,130,12],[131,9,131,12],[132,9,132,12],[30,1,30,16],[32,1,32,16],[44,1,44,16],[33,1,33,15],[34,1,34,15],[35,1,35,15],[36,1,36,15],[37,1,37,15],[120,1,120,8],[120,9,120,16],[49,1,49,15],[50,1,50,15],[51,1,51,15],[52,1,52,16],[54,1,54,16],[55,1,55,16],[57,1,57,16],[38,1,38,15],[39,1,39,15],[40,1,40,15],[41,1,41,15],[42,1,42,16],[45,1,45,15],[46,1,46,15],[22,1,22,16],[23,1,23,16],[25,1,25,16],[26,1,26,16],[27,1,27,16],[18,1,18,3],[19,1,19,3],[20,1,20,3],[29,1,29,16],[16,1,16,16],[17,1,17,3],[17,4,17,16],[18,4,18,16],[19,4,19,16],[20,4,20,16],[0,1,0,16],[7,1,7,16],[8,1,8,16],[3,2,3,16],[4,2,4,16],[5,2,5,16],[10,1,10,16],[11,1,11,16],[13,1,13,16],[14,1,14,16],[47,1,47,15],[48,1,48,15],[58,1,58,16],[60,1,60,16],[61,1,61,8],[61,9,61,16],[62,9,62,16],[63,9,63,16],[64,9,64,16],[62,1,62,8],[63,1,63,8],[64,1,64,8],[66,1,66,16],[67,1,67,16],[68,1,68,15],[69,1,69,15],[70,1,70,15],[71,1,71,15],[72,1,72,15],[73,1,73,15],[74,1,74,15],[88,1,88,15],[89,1,89,15],[90,1,90,16],[85,1,85,15],[86,1,86,15],[87,1,87,15],[92,1,92,16],[75,1,75,15],[76,1,76,15],[77,1,77,16],[79,1,79,16],[80,1,80,15],[81,1,81,15],[82,1,82,15],[83,1,83,15],[84,1,84,15],[93,13,93,16],[93,9,93,12],[93,1,93,8],[94,1,94,8],[94,9,94,12],[94,13,94,16],[95,1,95,8],[95,9,95,12],[95,13,95,16],[96,1,96,8],[96,9,96,12],[96,13,96,16],[97,1,97,8],[97,9,97,12],[97,13,97,16],[99,1,99,16],[100,1,100,8],[100,9,100,12],[100,13,100,16],[101,1,101,8],[101,9,101,12],[101,13,101,16],[102,1,102,8],[102,9,102,12],[102,13,102,16],[103,1,103,8],[103,9,103,12],[103,13,103,16],[107,1,107,8],[108,1,108,8],[107,13,108,16],[107,9,108,12],[119,1,119,16],[104,1,104,8],[104,9,104,12],[104,13,104,16],[105,1,105,8],[105,9,105,12],[105,13,105,16],[106,1,106,8],[106,9,106,12],[106,13,106,16],[175,1,175,8],[175,9,175,12],[175,13,175,16],[179,1,179,8],[179,9,179,12],[179,13,179,16],[180,1,180,8],[180,9,180,12],[180,13,180,16],[176,1,176,8],[176,9,176,12],[176,13,176,16],[177,1,177,8],[177,9,177,12],[177,13,177,16],[178,1,178,8],[178,9,178,12],[178,13,178,16],[252,1,252,16],[184,1,184,8],[184,9,184,12],[184,13,184,16],[185,1,185,8],[185,9,185,12],[185,13,185,16],[181,1,181,8],[181,9,181,12],[181,13,181,16],[182,1,182,8],[182,9,182,12],[182,13,182,16],[183,1,183,8],[183,9,183,12],[183,13,183,16],[188,14,188,16],[188,11,188,13],[188,10,189,10],[188,9,189,9],[188,1,189,1],[188,6,188,8],[188,2,189,2],[188,3,188,5]]}
[null,"АНКЕТА ДЛЯ РУКОВОДИТЕЛЯ ОБЩЕОБРАЗОВАТЕЛЬНОЙ ОРГАНИЗАЦИИ\nпо обеспечению введения федерального государственного образовательного стандарта начального общего образования обучающихся с ограниченными возможностями здоровья (ФГОС НОО ОВЗ)\nи\nфедерального государственного образовательного стандарта образования обучающихся с умственной отсталостью (интеллектуальными нарушениями) (ФГОС О УО)"]
[]
[null,"Инструкция к заполнению"]
[null,null,"синим цветом выделены ячейки с заголовками и с наименованиями разделов"]
[null,null,"зеленым цветом выделены наименования полей в таблицах"]
[null,null,"желтым цветом выделены ячейки к заполнению. Ячейкам назначены различные условия на ввод данных. Для некоторых ячеек необходимо выбрать значения из списка"]
[]
[null,"Субъект Российской Федерации:"]
[null,"Алтайский край"]
[]
[null,"Муниципальный район:"]
[]
[]
[null,"Наименование общеобразовательной организации:"]
[null,"краевое государсвтенное бюджетное общеобразовательное учреждение для обучающихся, воспитанников с ограниченными возможностями здоровья \" Барнаульская общеобразовательная школа - интернат № 5\""]
[]
[null,"Контактное лицо:"]
[null,"ФИО",null,null,"Безбородова Оксана Николаевна"]
[null,"должность",null,null,"заместитель диретора по учебно - воспитательной работе"]
[null,"телефон",null,null,"8(3852) 52-20-82"]
[null,"электронная почта",null,null,"bar-internat5@rambler.ru"]
[]
[null,"Создана ли в образовательной организации рабочая группа по введению ФГОС?"]
[null,"да"]
[]
[null,"1. Нормативно-правовое и финансовое обеспечение деятельности образовательной организации в условиях введения ФГОС НОО обучающихся с ОВЗ и ФГОС образования обучающихся с умственной отсталостью"]
[null,"1.1 Разработан ли и утвержден план-график введения в Вашей образовательной организации ФГОС НОО обучающихся с ОВЗ и ФГОС образования обучающихся с умственной отсталостью?"]
[null,"да"]
[]
[null,"1.2 Приведены ли в соответствие с ФГОС НОО обучающихся с ОВЗ и ФГОС образования обучающихся с умственной отсталостью локальные акты Вашей образовательной организации?"]
[null,"да"]
[]
[null,"1.3 Укажите организации, с которыми в 2014-2016 годах были заключены договоры (соглашения) о сотрудничестве (сетевом взаимодействии) в целях успешного введения ФГОС НОО обучающихся с ОВЗ и ФГОС образования обучающихся с умственной (возможно выбрать несколько вариантов ответа):"]
[null,"А) С дошкольными образовательными организациями",{"$nulls":14},"нет"]
[null,"Б) С организациями дополнительного образования",{"$nulls":14},"нет"]
[null,"В) С образовательными организациями, реализующими адаптированные основные общеобразовательные программы (бывшие СКОУ)",{"$nulls":14},"нет"]
[null,"Г) С организациями для детей, нуждающихся в психолого-педагогической и медико-социальной помощи (ППМС-центры)",{"$nulls":14},"нет"]
[null,"Д) С общественными организациями",{"$nulls":14},"нет"]
[null,"Е) С учреждениями здравоохранения",{"$nulls":14},"нет"]
[null,"Ж) С учреждениями соцзащиты",{"$nulls":14},"нет"]
[null,"З) С некоммерческими организациями",{"$nulls":14},"нет"]
[null,"И) С иными организациями (указать):",{"$nulls":14},"нет"]
[]
[]
[null,"1.4 Укажите нормативные документы, разработанные Вашей образовательной организацией для успешного введения ФГОС НОО обучающихся с ОВЗ и ФГОС образования обучающихся с умственной отсталостью (возможно выбрать несколько вариантов ответа):"]
[null,"А) Разделы в Уставе образовательной организации об обучении и воспитании детей с ОВЗ, инвалидностью",{"$nulls":14},"нет"]
[null,"Б) Разделы о создании специальных образовательных условий для детей с ОВЗ, инвалидностью, в Программе развития организации",{"$nulls":14},"да"]
[null,"В) Положение о ПМПк (психолого-медико-педагогическом консилиуме в образовательной организации)",{"$nulls":14},"да"]
[null,"Г) Программы психолого-педагогического сопровождения для детей с ОВЗ, инвалидностью",{"$nulls":14},"да"]
[null,"Д) Утвержденные адаптированные основные общеобразовательные программы и адаптированные образовательные программы отдельных учащихся с ОВЗ",{"$nulls":14},"да"]
[null,"Е) Договор с родителями детей с ОВЗ, инвалидностью",{"$nulls":14},"нет"]
[null,"Ж) Иные (указать):",{"$nulls":14},"нет"]
[]
[]
[null,"1.5 Реализуется ли финансирование Вашей образовательной организации за счет средств субвенции учебных расходов в объеме, соответствующем требованиями к материально-техническому обеспечению введения ФГОС?"]
[null,"нет"]
[]
[null,"1.6 Произведена ли корректировка государственного (муниципального) задания Вашей образовательной организации в объеме расходов, необходимых для реализации адаптированной основной образовательной программы?"]
[null,"да"]
[]
[null,"1.7 Укажите среднегодовые затраты Вашей образовательной организации"]
[null,"Статус обучающегося",{"$nulls":7},"Финансовые затраты на оказание образовательной услуги в тыс. руб. (например, 145, если 145000)"]
[null,"Обучающийся, не имеющий статуса ОВЗ и инвалидности",{"$nulls":7},0]
[null,"Обучающийся с ОВЗ",{"$nulls":7},32000]
[null,"Обучающийся с инвалидностью",{"$nulls":7},16700]
[]
[null,"2. Материально-техническое обеспечение образовательной организации в условиях введения ФГОС НОО обучающихся с ОВЗ и ФГОС образования обучающихся с умственной отсталостью"]
[null,"2.1. Укажите, какие условия доступности объекта созданы в здании (зданиях) Вашей образовательной организации (возможно выбрать несколько вариантов ответа):"]
[null,"А) Возможность беспрепятственного входа и выхода из него",{"$nulls":14},"да"]
[null,"Б) Возможность самостоятельного передвижения по территории объекта в целях доступа к месту предоставления услуги, в том числе с помощью работников объекта, предоставляющих услуги, ассистивных и вспомогательных технологий, а также сменного кресла-коляски",{"$nulls":14},"да"]
[null,"В) Возможность посадки в транспортное средство и высадки из него перед входом в объект, в том числе с использованием кресла-коляски и, при необходимости, с помощью работников объекта",{"$nulls":14},"да"]
[null,"Г) Сопровождение инвалидов, имеющих стойкие нарушения функции зрения, и возможность самостоятельного передвижения по территории объекта;",{"$nulls":14},"да"]
[null,"Д) Содействие инвалиду при входе в объект и выходе из него",{"$nulls":14},"да"]
[null,"Е) Информирование инвалида о доступных маршрутах общественного транспорта",{"$nulls":14},"да"]
[null,"Ж) Надлежащее размещение носителей информации, необходимой для обеспечения беспрепятственного доступа инвалидов к объектам и услугам, с учетом ограничений их жизнедеятельности, в том числе дублирование необходимой для получения услуги звуковой и зрительной информации, а также надписей, знаков и иной текстовой и графической информации знаками, выполненными рельефно-точечным шрифтом Брайля и на контрастном фоне",{"$nulls":14},"да"]
[null,"З) Обеспечение допуска на объект, в котором предоставляются услуги, собаки-проводника при наличии документа, подтверждающего ее специальное обучение, выданного по форме и в порядке, утвержденных приказом Министерства труда и социальной защиты Российской Федерации от 22 июня 2015 г. N 386н",{"$nulls":14},"да"]
[null,"Ж) Иные (указать):",{"$nulls":14},"нет"]
[]
[]
[null,"2.2. Укажите, какие условия доступности услуг созданы в здании (зданиях) Вашей образовательной организации (возможно выбрать несколько вариантов ответа):"]
[null,"А) Наличие при входе в объект вывески с названием организации, графиком работы организации, плана здания, выполненных рельефно-точечным шрифтом Брайля и на контрастном фоне",{"$nulls":14},"да"]
[null,"Б) Оказание инвалидам помощи, необходимой для получения в доступной для них форме информации о правилах предоставления услуги, в том числе об оформлении необходимых  для получения услуги документов, о совершении ими других необходимых для получения услуги действий",{"$nulls":14},"да"]
[null,"В) Предоставление инвалидам по слуху, при необходимости, услуги с использованием русского жестового языка, включая обеспечение допуска на объект сурдопереводчика, тифлопереводчика",{"$nulls":14},"нет"]
[null,"Г) Наличие в одном из помещений, предназначенных для проведения массовых мероприятий, индукционных петель и звукоусиливающей аппаратуры",{"$nulls":14},"нет"]
[null,"Д) Адаптация официального сайта органа и организации, предоставляющих услуги в сфере образования, для лиц с нарушением зрения (слабовидящих)",{"$nulls":14},"да"]
[null,"Е) Обеспечение предоставления услуг тьютора организацией, предоставляющей услуги в сфере образования, на основании соответствующей рекомендации в заключении психолого-медико-педагогической комиссии или индивидуальной программе реабилитации инвалида",{"$nulls":14},"нет"]
[null,"Ж) Предоставление бесплатно учебников и учебных пособий, иной учебной литературы, а также специальных технических средств обучения коллективного и индивидуального пользования",{"$nulls":14},"да"]
[null,"З) Оказание работниками органов и организаций, предоставляющих услуги в сфере образования, иной необходимой инвалидам помощи в преодолении барьеров, мешающих получению услуг в сфере образования и использованию объектов наравне с другими лицами",{"$nulls":14},"да"]
[null,"И) Условия доступности в сфере образования для инвалидов, предусмотренные условия доступности услуг в сфере образования для инвалидов, предусмотренные Порядком организации и осуществления образовательной деятельности по основным общеобразовательным программам - образовательным программам начального общего, основного общего и среднего общего образования, утвержденным приказом Министерства образования и науки Российской Федерации от 30 августа 2013 г. N 1015",{"$nulls":14},"да"]
[null,"К) Иные (указать):",{"$nulls":14},"нет"]
[]
[]
[null,"2.3 Имеются ли в Вашей образовательной организации следующие помещения, приспособленные для обучающихся, имеющих статус ОВЗ, обучающихся с инвалидностью: "]
[null,"Помещение",{"$nulls":7},"Отметка о наличии (да/нет)",null,null,null,"Количество"]
[null,"Спортивный зал",{"$nulls":7},"да",null,null,null,1]
[null,"Кабинет психолого-педагогической службы",{"$nulls":7},"да",null,null,null,1]
[null,"Мастерские",{"$nulls":7},"да",null,null,null,7]
[null,"Медицинский блок",{"$nulls":7},"Да",null,null,null,1]
[]
[null,"2.4 Укажите, какие специальные учебники, учебные пособия имеются в Вашей образовательной организации, а также потребность в них: "]
[null,"Наименование материала",{"$nulls":7},"Отметка о наличии (да/нет)",null,null,null,"Потребность (в штуках)"]
[null,"Учебно-методические комплекты по реализуемым программам",{"$nulls":7},"да",null,null,null,30]
[null,"Учебная литература на рельефно-точечном шрифте Брайля",{"$nulls":7},"нет",null,null,null,0]
[null,"Учебники и учебные пособия с увеличенным размером шрифта",{"$nulls":7},"нет",null,null,null,0]
[null,"Аудиоучебники",{"$nulls":7},"нет",null,null,null,0]
[null,"Электронные варианты учебников и учебных пособий",{"$nulls":7},"нет",null,null,null,0]
[null,"Художественная литература",{"$nulls":7},"да",null,null,null,0]
[null,"Иные (указать)"]
[]
[]
[null,"3. Кадровое обеспечение образовательной организации в условиях введения ФГОС НОО обучающихся с ОВЗ, ФГОС образования обучающихся с умственной отсталостью"]
[null,"3.1 Количество педагогов, прошедших повышение квалификации по ФГОС:"]
[null,"количество:",{"$nulls":7},22]
[null,"в процентах от общего числа педагогов:",{"$nulls":7},0.49]
[]
[null,"3.2 Количество административно-управленческого персонала, прошедшего повышение квалификации по ФГОС:"]
[null,"количество:",{"$nulls":7},3]
[null,"в процентах от общего числа административно-управленческого персонала): ",{"$nulls":7},1]
[]
[null,"Общее количество педагогов, повысивших квалификацию по реализации ФГОС НОО обучающихся с ОВЗ и ФГОС образования обучающихся с умственной отсталостью (не менее 72 часов): "]
[null,"количество:",{"$nulls":7},0]
[]
[null,"3.3 Как осуществляется медицинское сопровождение обучающихся со статусом ОВЗ, инвалидностью в Вашей образовательной организации?"]
[null,"В учреждении проходит ежегодная диспансеризация обучающихся, воспитанников."]
[]
[null,"3.4 Уровень квалификации учителей"]
[null,"Показатель",{"$nulls":7},"Количество педагогов",null,null,null,"Процент от общего числа педагогов"]
[null,"Имеют высшее педагогическое образование",{"$nulls":7},38,null,null,null,0.86]
[null,"Имеют средне специальное педагогическое образование",{"$nulls":7},6,null,null,null,0.14000000000000001]
[null,"Не имеют педагогического образования",{"$nulls":7},0,null,null,null,0]
[null,"Имеют высшую квалификационную категорию",{"$nulls":7},19,null,null,null,0.43]
[null,"Имеют первую квалификационную категорию",{"$nulls":7},17,null,null,null,0.39]
[null,"Не имеют квалификационной категории",{"$nulls":7},8,null,null,null,0.18]
[]
[null,"3.5 Наличие специалистов психолого-педагогического и медицинского сопровождения в штате Вашей образовательной организации"]
[null,"Показатель",{"$nulls":7},"Количество специалистов",null,null,null,"Уровень образования"]
[{"$nulls":9},"Есть в штате на 1.09.2016",null,"Потребность на 1.09.2016",null,"Базовое",null,"Наличие профессиональной переподготовки"]
[null,"Педагог-психолог",{"$nulls":7},1,null,0,null,1,null,1]
[null,"Учитель-логопед",{"$nulls":7},2,null,0,null,2,null,2]
[null,"Учитель-дефектолог",null,null,null,"Сурдопедагог",null,null,null,0,null,0,null,0,null,0]
[{"$nulls":5},"Тифлопедагог",null,null,null,0,null,0,null,0,null,0]
[{"$nulls":5},"Олигофренопедагог",null,null,null,0,null,0,null,0,null,0]
[null,"Социальный педагог",{"$nulls":7},1,null,0,null,1,null,0]
[null,"Ассистент-помощник",{"$nulls":7},0,null,0,null,0,null,0]
[null,"Тьютор",{"$nulls":7},0,null,0,null,0,null,0]
[null,"Инструктор ЛФК / адаптивной физкультуры",{"$nulls":7},1,null,1,null,0,null,1]
[null,"Медицинский работник",{"$nulls":7},2,null,0,null,2,null,2]
[]
[null,"4. Контингент образовательной организации в условиях введения ФГОС НОО обучающихся с ОВЗ, ФГОС образования обучающихся с умственной отсталостью"]
[null,"4.1 Укажите количество обучающихся в Вашей образовательной организации"]
[null,"Класс",null,"Количество классов в параллели",{"$nulls":7},"Количество обучающихся"]
[null,null,null,"Всего",null,"Из них инклюзивных классов",null,"Из них коррекционных классов для учащихся",null,null,null," Всего",null,"Из них со статусом ОВЗ",null,"Из них с инвалидностью"]
[{"$nulls":7},"без у/о",null,"с у/о"]
[null,"1 (по плану на 1.09.2016 г.)",null,20,null,0,null,0,null,20,null,211,null,211,null,110]
[null,2]
[null,3]
[null,4]
[null,5]
[null,6]
[null,"Всего на начальном уровне образования",null,{"$f":"SUM(D154:E159)","v":20},null,{"$f":"SUM(F154:G159)","v":0},null,{"$f":"SUM(H154:I159)","v":0},null,{"$f":"SUM(J154:K159)","v":20},null,{"$f":"SUM(L154:M159)","v":211},null,{"$f":"SUM(N154:O159)","v":211},null,{"$f":"SUM(P154:Q159)","v":110}]
[null,5,null,0,null,0,null,0,null,0,null,0,null,0,null,0]
[null,6]
[null,7]
[null,8]
[null,9]
[null,10]
[null,"Всего на основном уровне образования",null,{"$f":"SUM(D161:E166)","v":0},null,{"$f":"SUM(F161:G166)","v":0},null,{"$f":"SUM(H161:I166)","v":0},null,{"$f":"SUM(J161:K166)","v":0},null,{"$f":"SUM(L161:M166)","v":0},null,{"$f":"SUM(N161:O166)","v":0},null,{"$f":"SUM(P161:Q166)","v":0}]
[null,10,null,0,null,0,null,0,null,0,null,0,null,0,null,0]
[null,11,{"$nulls":7},0]
[null,"Всего на среднем уровне образования",null,{"$f":"SUM(D168:E169)","v":0},null,{"$f":"SUM(F168:G169)","v":0},null,{"$f":"SUM(H168:I169)","v":0},null,{"$f":"SUM(J168:K169)","v":0},null,{"$f":"SUM(L168:M169)","v":0},null,{"$f":"SUM(N168:O169)","v":0},null,{"$f":"SUM(P168:Q169)","v":0}]
[null,"ИТОГО",null,{"$f":"SUM(D160,D167,D170)","v":20},null,{"$f":"SUM(F160,F167,F170)","v":0},null,{"$f":"SUM(H160,H167,H170)","v":0},null,{"$f":"SUM(J160,J167,J170)","v":20},null,{"$f":"SUM(L160,L167,L170)","v":211},null,{"$f":"SUM(N160,N167,N170)","v":211},null,{"$f":"SUM(P160,P167,P170)","v":110}]
[]
[null,"4.2 Укажите количество классов, реализующих адаптированные основные общеобразовательные программы в Вашей образовательной организации"]
[null,"Адаптированная основная общеобразовательная программа",{"$nulls":7},"Количество классов"]
[{"$nulls":9},"Всего",null,null,null,"Из них 1 классов\n(по плану на 1.09.2016 г.)"]
[null,"Для глухих обучающихся",{"$nulls":7},0,null,null,null,0]
[null,"Для слабослышащих обучающихся",{"$nulls":7},0,null,null,null,0]
[null,"Для слепых обучающихся",{"$nulls":7},0,null,null,null,0]
[null,"Для слабовидящих обучающихся",{"$nulls":7},0,null,null,null,0]
[null,"Для обучающихся с тяжелыми нарушениями речи",{"$nulls":7},0,null,null,null,0]
[null,"Для обучающихся с нарушениями опорно-двигательного аппарата",{"$nulls":7},0,null,null,null,0]
[null,"Для обучающихся с задержкой психического развития",{"$nulls":7},0,null,null,null,0]
[null,"Для обучающихся с расстройствами аутистического спектра",{"$nulls":7},0,null,null,null,0]
[null,"Для обучающихся с умственной отсталостью",{"$nulls":7},20,null,null,null,2]
[null,"Для обучающихся с тяжелыми и множественными нарушениями",{"$nulls":7},0,null,null,null,0]
[null,"Всего",{"$nulls":7},{"$f":"SUM(J176:M185)","v":20},null,null,null,{"$f":"SUM(N176:Q185)","v":2}]
[]
[null,"4.3 Укажите количество классов, реализующих варианты адаптированных основных общеобразовательных программ начального общего образования"]
[null,"Адаптированная основная общеобразовательная программа (АООП)","Вариант","Количество классов",null,null,"Количество обучающихся",null,null,"Адаптированная основная общеобразовательная программа (АООП)","Вариант","Количество классов",null,null,"Количество обучающихся"]
[null,null,null,"Всего","Из них инклюзивных","Из них коррекционных","Всего","Из них со статусом ОВЗ","Из них с инвалидностью",null,null,"Всего","Из них инклюзивных","Из них коррекционных","Всего","Из них со статусом ОВЗ","Из них с инвалидностью"]
[null,"АООП НОО для глухих обучающихся","1.1",{"$f":"SUM(E191:F191)","v":0},0,0,{"$f":"SUM(H191:I191)","v":0},0,0,"АООП НОО для слабослышащих и позднооглохших обучающихся","2.1",{"$f":"SUM(M191:N191)","v":0},0,0,{"$f":"SUM(P191:Q191)","v":0},0,0]
[null,null,"1.2",0,0,0,0,0,0,null,"2.2",{"$f":"SUM(M192:N192)","v":0},0,0,0,0,0]
[null,null,"1.3",0,0,0,0,0,0,null,"2.3",{"$f":"SUM(M193:N193)","v":0},0,0,0,0,0]
[null,null,"1.4",0,0,0,0,0,0]
[null,"АООП НОО для слепых обучающихся","3.1",0,0,0,0,0,0,"АООП НОО для слабовидящих обучающихся","4.1",{"$f":"SUM(M195:N195)","v":0},0,0,{"$f":"SUM(P195:Q195)","v":0},0,0]
[null,null,"3.2",0,0,0,0,0,0,null,"4.2",{"$f":"SUM(M196:N196)","v":0},0,0,{"$f":"SUM(P196:Q196)","v":0},0,0]
[null,null,"3.3",0,0,0,0,0,0,null,"4.3",{"$f":"SUM(M197:N197)","v":0},0,0,{"$f":"SUM(P197:Q197)","v":0},0,0]
[null,null,"3.4",0,0,0,0,0,0]
[null,"АООП НОО для обучающихся с тяжелыми нарушениями речи","5.1",0,0,0,0,0,0,"АООП НОО для обучающихся с нарушениями опорно- двигательного аппарата","6.1",{"$f":"SUM(M199:N199)","v":0},0,0,{"$f":"SUM(P199:Q199)","v":0},0,0]
[null,null,"5.2",0,0,0,0,0,0,null,"6.2",0,0,0,0,0,0]
[{"$nulls":10},"6.3",0,0,0,0,0,0]
[{"$nulls":10},"6.4",0,0,0,0,0,0]
[null,"АООП НОО для обучающихся с задержкой психического развития","7.1",{"$f":"SUM(E203:F203)","v":0},0,0,{"$f":"SUM(H203:I203)","v":0},0,0,"АООП НОО для обучающихся с расстройствами аутистического спектра","8.1",0,0,0,0,0,0]
[null,null,"7.2",0,0,0,0,0,0,null,"8.2",0,0,0,0,0,0]
[{"$nulls":10},"8.3",0,0,0,0,0,0]
[{"$nulls":10},"8.4",0,0,0,0,0,0]
[]
[null,"4.4 Укажите количество классов и обучающихся в них в Вашей образовательной организации, реализующих адаптированную основную общеобразовательную программу для детей с умственной отсталостью"]
[null,"Адаптированная основная общеобразовательная программа (АООП)",{"$nulls":5},"Вариант",null,"Количество классов",null,"Количество обучающихся"]
[{"$nulls":11},"Всего",null,"Из них со статусом ОВЗ",null,"Из них с инвалидностью"]
[null,"Адаптированная основная общеобразовательная программа (АООП)",{"$nulls":5},"Вариант 1",null,2,null,{"$f":"SUM(N211:Q211)","v":17},null,8,null,9]
[{"$nulls":7},"Вариант 2",null,0,null,{"$f":"SUM(N212:Q212)","v":0},null,0,null,0]
[]
[null,"4.5 Укажите количество обучающихся по специальным индивидуальным программам развития (СИПР) в Вашей образовательной организации."]
[null,"Класс",null,null,null,"Обучается в инклюзивном классе",{"$nulls":5},"Обучается в коррекционном классе"]
[{"$nulls":5},"Всего",null,"Из них со статусом ОВЗ",null,"Из них с инвалидностью",null,"Всего",null,"Из них со статусом ОВЗ",null,"Из них с инвалидностью"]
[null,"1 (по плану на 01.09.2016 г.)",null,null,null,{"$f":"SUM(H217:K217)","v":0},null,0,null,0,null,{"$f":"SUM(N217:Q217)","v":0},null,0,null,0]
[null,2,null,null,null,0,null,0,null,0,null,0,null,0,null,0]
[null,3,null,null,null,0,null,0,null,0,null,0,null,0,null,0]
[null,4,null,null,null,0,null,0,null,0,null,0,null,0,null,0]
[null,5,null,null,null,0,null,0,null,0,null,0,null,0,null,0]
[null,6,null,null,null,0,null,0,null,0,null,0,null,0,null,0]
[null,7,null,null,null,0,null,0,null,0,null,0,null,0,null,0]
[null,8,null,null,null,0,null,0,null,0,null,0,null,0,null,0]
[null,9,null,null,null,0,null,0,null,0,null,0,null,0,null,0]
[null,10,null,null,null,0,null,0,null,0,null,0,null,0,null,0]
[null,11,null,null,null,0,null,0,null,0,null,0,null,0,null,0]
[null,12,null,null,null,0,null,0,null,0,null,0,null,0,null,0]
[null,"ИТОГО",null,null,null,{"$f":"SUM(F217:G228)","v":0},null,{"$f":"SUM(H217:I228)","v":0},null,{"$f":"SUM(J217:K228)","v":0},null,{"$f":"SUM(L217:M228)","v":0},null,{"$f":"SUM(N217:O228)","v":0},null,{"$f":"SUM(P217:Q228)","v":0}]
[]
[null,"4.6 Укажите количество детей, обучающихся по следующим формам образования и обучения в Вашей образовательной организации"]
[{"$nulls":8},"Количество детей"]
[{"$nulls":8},"Всего",null,null,"Из них со статусом ОВЗ",null,null,"Из них с инвалидностью"]
[null,"Форма образования"]
[null,"Семейное образование",{"$nulls":6},{"$f":"SUM(L235:Q235)","v":0},null,null,0,null,null,0]
[null,"Самообразование",{"$nulls":6},{"$f":"SUM(L236:Q236)","v":0},null,null,0,null,null,0]
[null,"Форма обучения"]
[null,"Экстернат",{"$nulls":6},{"$f":"SUM(L238:Q238)","v":0},null,null,0,null,null,0]
[null,"Обучение на дому в форме ",null,"очного ",{"$nulls":4},26,null,null,2,null,null,24]
[null,null,null,"очно-заочного ",{"$nulls":4},0,null,null,0,null,null,0]
[null,null,null,"заочного ",{"$nulls":4},0,null,null,0,null,null,0]
[null,null,null,"С использованием дистанционных технологий",{"$nulls":4},0,null,null,0,null,null,0]
[null,"Дистанционное обучение",{"$nulls":6},0,null,null,0,null,null,0]
[]
[null,"5. Информационное обеспечение образовательной организации в условиях введения ФГОС НОО обучающихся с ОВЗ, ФГОС образования обучающихся с умственной отсталостью"]
[null,"5.1 Имеется ли у Вашей образовательной организации официальный сайт?",{"$nulls":13},"да"]
[null,"kor-inter5.ru"]
[]
[null,"5.2 Имеется ли на сайте Вашей образовательной организации информация, связанная с реализацией АООП (при наличии сайта)?"]
[null,"да"]
[]
[null,"5.3 Организовано ли в Вашей образовательной организации изучение общественного мнения по вопросам введения ФГОС?"]
[null,"да"]

{"sheet":"Информация","index":1,"n_rows":4,"n_cols":1,"rows_kept":4,"cut":false,"hidden":true,"merged":[]}
["Информация"]
["А) Да, имеется"]
["Б) Да, но не в полном объеме"]
["В) Нет"]

{"sheet":"Сайт","index":2,"n_rows":3,"n_cols":1,"rows_kept":3,"cut":false,"hidden":true,"merged":[]}
["Сайт"]
["А) Да (указать адрес):"]
["Б) Нет"]

{"sheet":"Мед сопровождение","index":3,"n_rows":3,"n_cols":1,"rows_kept":3,"cut":false,"hidden":true,"merged":[]}
["Мед сопровождение"]
["А) на базе образовательной организации (медицинский работник в штате образовательной организации)"]
["Б) на базе медицинской организации (посредством сетевого взаимодействия)"]

{"sheet":"Финансирование","index":4,"n_rows":4,"n_cols":1,"rows_kept":4,"cut":false,"hidden":true,"merged":[]}
["Финансирование"]
["А) Да"]
["Б) Реализуется не в полном объеме"]
["В) Нет"]

{"sheet":"Да-Нет","index":5,"n_rows":3,"n_cols":1,"rows_kept":3,"cut":false,"hidden":true,"merged":[]}
["Да-Нет"]
["Да"]
["Нет"]

{"sheet":"Локальные акты","index":6,"n_rows":4,"n_cols":1,"rows_kept":4,"cut":false,"hidden":true,"merged":[]}
["Локальные акты"]
["А) Да"]
["Б) Частично"]
["В) Нет"]

{"sheet":"Субъекты","index":7,"n_rows":86,"n_cols":1,"rows_kept":86,"cut":false,"hidden":true,"merged":[]}
["Субъекты"]
["Адыгея"]
["Алтай"]
["Алтайский край"]
["Амурская область"]
["Архангельская область"]
["Астраханская область"]
["Башкортостан"]
["Белгородская область"]
["Брянская область"]
["Бурятия"]
["Владимирская область"]
["Волгоградская область"]
["Вологодская область"]
["Воронежская область"]
["Дагестан"]
["Еврейская автономная область"]
["Забайкальский край"]
["Ивановская область"]
["Ингушетия"]
["Иркутская область"]
["Кабардино-Балкария"]
["Калининградская область"]
["Калмыкия"]
["Калужская область"]
["Камчатский край"]
["Карачаево-Черкесия"]
["Карелия"]
["Кемеровская область"]
["Кировская область"]
["Коми"]
["Костромская область"]
["Краснодарский край"]
["Красноярский край"]
["Крым"]
["Курганская область"]
["Курская область"]
["Ленинградская область"]
["Липецкая область"]
["Магаданская область"]
["Марий Эл"]
["Мордовия"]
["Москва"]
["Московская область"]
["Мурманская область"]
["Ненецкий автономный округ"]
["Нижегородская область"]
["Новгородская область"]
["Новосибирская область"]
["Омская область"]
["Оренбургская область"]
["Орловская область"]
["Пензенская область"]
["Пермский край"]
["Приморский край"]
["Псковская область"]
["Ростовская область"]
["Рязанская область"]
["Самарская область"]
["Санкт-Петербург"]
["Саратовская область"]
["Саха (Якутия)"]
["Сахалинская область"]
["Свердловская область"]
["Севастополь"]
["Северная Осетия - Алания"]
["Смоленская область"]
["Ставропольский край"]
["Тамбовская область"]
["Татарстан"]
["Тверская область"]
["Томская область"]
["Тульская область"]
["Тыва"]
["Тюменская область"]
["Удмуртия"]
["Ульяновская область"]
["Хабаровский край"]
["Хакасия"]
["Ханты-Мансийский автономный округ – Югра"]
["Челябинская область"]
["Чечня"]
["Чувашия"]
["Чукотский автономный округ"]
["Ямало-Ненецкий автономный округ"]
["Ярославская область"]

{"sheet":"Раб группа","index":8,"n_rows":4,"n_cols":1,"rows_kept":4,"cut":false,"hidden":true,"merged":[]}
["Рабочая группа по введению ФГОС НОО "]
["А) Да"]
["Б) Находится на стадии формирования"]
["В) Нет"]

{"sheet":"План-график","index":9,"n_rows":4,"n_cols":1,"rows_kept":4,"cut":false,"hidden":true,"merged":[]}
["План-график"]
["А) Разработан и утвержден"]
["Б) Разработан, но не утвержден"]
["В) Не разработан"]